[Event "44th Chess Olympiad Open 2022"]
[Site "Chennai"]
[Date "2022.08.09"]
[Round "11.3"]
[White "Van Foreest, Jorden"]
[Black "Yakubboev, Nodirbek"]
[Result "1/2-1/2"]
[ECO "E90"]
[WhiteElo "2678"]
[BlackElo "2620"]
[Annotator "TA"]
[PlyCount "66"]
[EventDate "2022.07.29"]
[EventType "team-tourn"]
[EventCountry "IND"]
[SourceTitle "playchess.com"]
[Source "ChessBase"]
[SourceQuality "1"]
[WhiteTeam "Netherlands"]
[BlackTeam "Uzbekistan"]
[WhiteTeamCountry "NED"]
[BlackTeamCountry "UZB"]
[TimeControl "40/5400+30:1800+30"]

{[%evp 11,66,34,39,46,31,31,46,15,29,30,31,27,27,27,25,18,56,58,51,13,51,46,45,33,46,41,89,81,66,78,95,0,0,-13,-20,-18,-19,-18,-20,-20,-19,-15,-21,-14,-9,-4,-6,-60,-4,-5,0,-2,0,-11,0,-4,-6]} 1. d4 {[%emt 0:00:04]} Nf6 {[%emt 0:00:10]} 2. c4 {[%emt 0:00:11]} g6 {[%emt 0:00:27]} 3. Nc3 {[%emt 0:00:12]} Bg7 {[%emt 0:00:16]} 4. e4 {[%emt 0:00:12]} d6 {[%emt 0:00:00]} 5. Nf3 {[%emt 0:00:13]} O-O {[%emt 0:00:12]} 6. Bd3 {[%emt 0:00:09]} Bg4 {[%emt 0:05:54]} 7. Be2 $1 {[%emt 0:00:11][%mdl 4] is recently more successful than 7.h3. E90: King's Indian: Classical: Early deviations and 6 h3.} Nfd7 {[%emt 0:23:06]} 8. Be3 {[%emt 0:00:54] [#]} Nb6 $146 {[%emt 0:01:39][%cal Oc7c5]} ({Predecessor:} 8... e5 9. d5 a5 10. Nd2 Bxe2 11. Qxe2 f5 12. f3 Na6 13. O-O-O Nac5 14. Kb1 a4 {1-0 (54) Dubov,D (2699)-Carlsen,M (2863) chess24.com INT 2020}) 9. h4 {[%emt 0:12:59] White is slightly better.} e6 {[%emt 0:12:43]} 10. Ng5 {[%emt 0:04:17]} Bxe2 {[%emt 0:01:20]} 11. Qxe2 {[%emt 0:00:10]} Nc6 {[%emt 0:08:07]} 12. O-O-O {[%emt 0:02:57]} h6 {[%emt 0:02:18]} 13. Nf3 {[%emt 0:02:30][%cal Oe4e5]} f5 {[%emt 0:06:34]} 14. exf5 {[%emt 0:09:00]} Rxf5 {[%emt 0:01:24]} 15. Kb1 {[%emt 0:00:19]} d5 {[%emt 0:02:20]} 16. c5 {[%emt 0:10:41]} Nc4 {[%emt 0:00:03]} 17. Bc1 {[%emt 0:00:04]} Qf6 {[%emt 0:02:27]} 18. Rhe1 {[%emt 0:01:10]} Rxf3 {[%emt 0:05:08]} 19. Qxf3 $16 {[%emt 0:01:50]} Qxf3 {[%emt 0:00:05]} 20. gxf3 {[%emt 0:00:06] Strongly threatening b3.} Nxd4 {[%emt 0:00:03]} 21. b3 {[%emt 0:25:42]} (21. Rg1 $16) 21... Ne5 $11 {[%emt 0:01:56]} 22. Rxd4 {[%emt 0:00:37]} Nxf3 {[%emt 0:00:02][%mdl 64] [#] Pin, Double Attack} 23. Rdd1 {[%emt 0:02:11]} Nxe1 {[%emt 0:00:01]} 24. Nb5 {[%emt 0:00:07]} c6 {[%emt 0:07:11]} 25. Rxe1 {[%emt 0:00:28] aiming for Nd6.} cxb5 {[%emt 0:00:02]} 26. Rxe6 {[%emt 0:00:09][%mdl 4096] Endgame KRB-KRB} Kf7 {[%emt 0:02:14]} 27. Rd6 {[%emt 0:00:05]} Bf8 {[%emt 0:01:01]} 28. Rxd5 {[%emt 0:03:08]} Ke6 {[%emt 0:00:36]} 29. Rd4 {[%emt 0:02:05]} ({White should try} 29. Rd3 $11) 29... Bxc5 {[%emt 0:02:24]} (29... h5 $1 $15) 30. Rg4 {[%emt 0:00:40] The position is equal.} Kf5 {[%emt 0:01:47]} 31. Rf4+ {[%emt 0:00:05]} Ke6 {[%emt 0:00:57] next ...h5 is good for Black.} 32. Rg4 {[%emt 0:00:05][%csl LRg6,LRh6]} Kf5 {[%emt 0:03:20]} 33. Rf4+ {[%emt 0:00:10]} Ke5 {[%emt 0:02:25] Weighted Error Value: White=0.11 (very precise) /Black=0.12 (very precise)} 1/2-1/2

[Event "44th Chess Olympiad Open 2022"]
[Site "Chennai"]
[Date "2022.08.09"]
[Round "11.3"]
[White "Sindarov, Javokhir"]
[Black "Bok, Benjamin"]
[Result "1/2-1/2"]
[ECO "C50"]
[WhiteElo "2629"]
[BlackElo "2616"]
[Annotator "TA"]
[PlyCount "105"]
[EventDate "2022.07.29"]
[EventType "team-tourn"]
[EventCountry "IND"]
[SourceTitle "playchess.com"]
[Source "ChessBase"]
[SourceQuality "1"]
[WhiteTeam "Uzbekistan"]
[BlackTeam "Netherlands"]
[WhiteTeamCountry "UZB"]
[BlackTeamCountry "NED"]
[TimeControl "40/5400+30:1800+30"]

{[%evp 17,105,0,0,0,0,0,0,0,0,0,29,31,32,23,43,32,46,10,25,8,8,8,8,8,8,8,8,1,8,8,8,8,8,8,59,43,47,47,95,95,72,0,0,0,0,0,0,0,0,0,0,0,62,75,70,71,57,59,48,54,68,37,37,36,35,37,37,37,53,34,34,34,53,51,43,40,50,18,36,0,0,0,0,0,8,0,0,0,8,0]} 1. e4 {[%emt 0:00:06]} e5 {[%emt 0:00:06]} 2. Nf3 {[%emt 0:00:34]} Nc6 {[%emt 0:00:04]} 3. Bc4 {[%emt 0:01:00]} Bc5 {[%emt 0:00:07]} 4. Nc3 {[%emt 0:07:31]} Nf6 {[%emt 0:00:11]} 5. d3 {[%emt 0:00:03]} h6 {[%emt 0:00:11]} 6. O-O {[%emt 0:00:11]} O-O {[%emt 0:00:10]} 7. h3 {[%emt 0:00:26]} a6 {[%emt 0:00:15]} 8. Be3 {[%emt 0:00:08] is cutting edge theory.} Bxe3 {[%emt 0:00:16]} 9. fxe3 {[%emt 0:00:03]} d6 {[%emt 0:00:07]} 10. d4 {[%emt 0:00:05] C50: Hungarian Defence and Giuoco Pianissimo.} b5 {[%emt 0:16:01]} 11. Bd3 {[%emt 0:00:12]} Re8 {[%emt 0:01:50] [#]} 12. d5 $146 {[%emt 0:00:25]} ({Predecessor:} 12. a3 Rb8 13. Qd2 Bb7 14. Qf2 Na5 15. Nh4 Kh8 16. Nf5 Nh7 17. b4 Nc4 18. a4 {1-0 (33) Demchenko,A (2597)-Mastrovasilis,A (2518) Kavala 2021}) 12... Ne7 {[%emt 0:01:46]} 13. Nd2 {[%emt 0:00:18]} Ng6 {[%emt 0:23:56]} 14. a4 {[%emt 0:12:27]} b4 {[%emt 0:01:54]} 15. Na2 {[%emt 0:00:05]} a5 {[%emt 0:05:42][%cal Oc7c6]} 16. c3 {[%emt 0:00:15]} bxc3 {[%emt 0:00:06]} 17. Nxc3 {[%emt 0:00:07]} Bd7 {[%emt 0:03:37]} 18. Bb5 {[%emt 0:06:44]} Nf8 {[%emt 0:00:55]} 19. Rc1 {[%emt 0:11:18]} Qe7 $1 {[%emt 0:02:12]} 20. Qc2 {[%emt 0:16:29]} Rec8 {[%emt 0:03:56]} 21. Rf3 {[%emt 0:01:55]} Qd8 {[%emt 0:04:32]} 22. Nc4 {[%emt 0:06:41]} N8h7 {[%emt 0:16:06]} 23. Rd1 {[%emt 0:09:43]} Rcb8 {[%emt 0:03:36]} 24. Rdf1 {[%emt 0:07:36]} Be8 {[%emt 0:03:28]} 25. R3f2 {[%emt 0:01:14]} Nd7 {[%emt 0:05:08]} ({Black should play} 25... Bd7 $11) 26. Bc6 $14 {[%emt 0:01:26]} Ra6 {[%emt 0:00:01]} 27. Qe2 {[%emt 0:01:40] Strongly threatening Bxd7.} Ra7 {[%emt 0:04:30]} (27... Qc8 $1 $14) 28. Nb5 {[%emt 0:00:26]} Ra6 {[%emt 0:00:01] [#]} 29. Nd2 {[%emt 0:00:27] White is much more active. The black rooks are badly placed.} (29. Qe1 $1 $16) 29... Rxc6 $11 {[%emt 0:02:14]} 30. dxc6 {[%emt 0:00:04]} Nc5 {[%emt 0:00:05][%csl LRa4,LRc6]} 31. Qc4 {[%emt 0:00:33][%cal Rf2f7]} Nf6 {[%emt 0:00:27]} 32. Nb3 {[%emt 0:01:29]} Nxb3 {[%emt 0:00:38]} 33. Qxb3 {[%emt 0:00:03]} Bxc6 {[%emt 0:00:10]} 34. Qc4 {[%emt 0:01:05]} Bxb5 {[%emt 0:00:52]} (34... Bxe4 $11 35. Rd1 (35. Nxc7 $2 d5 $17) 35... Bb7) 35. axb5 $14 {[%emt 0:00:04]} Qd7 {[%emt 0:00:06]} 36. Rc1 {[%emt 0:00:07][%cal Bf1c1,Bc1c7,Bc7a7][%mdl 32]} Rxb5 {[%emt 0:01:31]} 37. Qxc7 {[%emt 0:00:06]} Qxc7 {[%emt 0:00:16]} 38. Rxc7 $16 {[%emt 0:00:05][%mdl 4096] Endgame KRR-KRN} Rb3 {[%emt 0:01:09]} 39. Ra7 {[%emt 0:03:06]} Rxe3 {[%emt 0:00:10]} 40. Rc2 {[%emt 0:00:04]} Nxe4 {[%emt 0:01:33]} 41. Rc8+ {[%emt 0:32:15]} Kh7 {[%emt 0:02:06]} 42. Rxf7 {[%emt 0:00:00]} Nc5 {[%emt 0:14:37]} 43. Rcc7 {[%emt 0:00:00][%mdl 1024] White has compensation.} Rg3 {[%emt 0:00:10]} 44. Ra7 {[%emt 0:00:00]} a4 {[%emt 0:01:00]} 45. Kh2 {[%emt 0:00:00]} Rg6 {[%emt 0:01:12]} 46. g4 {[%emt 0:00:00]} e4 {[%emt 0:04:05]} 47. Rfe7 {[%emt 0:00:00]} d5 {[%emt 0:13:24]} 48. Re5 {[%emt 0:00:00]} Rb6 $1 {[%emt 0:00:00] The position is equal.} 49. Rxd5 {[%emt 0:00:00]} Rxb2+ {[%emt 0:00:00]} 50. Kg3 {[%emt 0:00:00]} Rb3+ {[%emt 0:00:00]} 51. Kh2 {[%emt 0:00:00]} Rb2+ {[%emt 0:00:00]} 52. Kg3 {[%emt 0:00:00]} Rb3+ {[%emt 0:00:00]} 53. Kh2 {[%emt 0:00:00] Weighted Error Value: White=0.06 (flawless) /Black=0.08 (flawless)} 1/2-1/2

[Event "44th Chess Olympiad Open 2022"]
[Site "Chennai"]
[Date "2022.08.09"]
[Round "11.3"]
[White "Warmerdam, Max"]
[Black "Vakhidov, Jakhongir"]
[Result "0-1"]
[ECO "B31"]
[WhiteElo "2610"]
[BlackElo "2564"]
[Annotator "TA"]
[PlyCount "120"]
[EventDate "2022.07.29"]
[EventType "team-tourn"]
[EventCountry "IND"]
[SourceTitle "playchess.com"]
[Source "ChessBase"]
[SourceQuality "1"]
[WhiteTeam "Netherlands"]
[BlackTeam "Uzbekistan"]
[WhiteTeamCountry "NED"]
[BlackTeamCountry "UZB"]
[TimeControl "40/5400+30:1800+30"]

{[%evp 14,120,0,0,0,16,20,22,13,0,0,7,-3,-34,-17,-71,-90,-85,-83,-71,-63,-92,-85,-97,-42,-49,-35,-31,-35,-188,-183,-239,-229,-292,-309,-313,-287,-316,-191,-190,-189,-176,-190,-195,-166,-230,-118,-263,-267,-220,-233,-258,-212,-400,-395,-383,-391,-402,-374,-455,-448,-422,-251,-247,-248,-245,-195,-237,-205,-203,-200,-216,-196,-183,-189,-279,-275,-275,-252,-270,-269,-260,-257,-260,-229,-236,-227,-196,-205,-228,-173,-181,0,-202,-197,-654,-655,-837,-809,-1521,-913,-29978,-29971,-29981,-29982,-29982,-29983,-29989,-29990]} 1. e4 {[%emt 0:00:04]} c5 {[%emt 0:01:02]} 2. Nf3 {[%emt 0:00:06]} Nc6 {[%emt 0:00:12]} 3. Bb5 {[%emt 0:01:36]} g6 {[%emt 0:00:13]} 4. O-O {[%emt 0:00:18]} Bg7 {[%emt 0:00:09]} 5. c3 {[%emt 0:01:29]} Nf6 {[%emt 0:00:21]} 6. d4 {[%emt 0:02:07]} cxd4 {[%emt 0:15:13] 6...Nxe4 is the fancy move.} 7. e5 {[%emt 0:00:40]} Nd5 {[%emt 0:00:02]} 8. cxd4 {[%emt 0:00:07]} Nc7 {[%emt 0:00:21] B31: Sicilian: 2...Nc6 3 Bb5 g6.} 9. Nc3 {[%emt 0:03:00] [#] was the old line (9.Ba4).} a6 $5 $146 {[%emt 0:05:38][%mdl 8] An interesting novelty.} ({Predecessor:} 9... Nxb5 10. Nxb5 O-O 11. Bf4 a6 12. Nc3 d6 13. exd6 exd6 14. h3 d5 15. Re1 Be6 16. Qd2 Re8 17. Re2 Qb6 18. Rae1 Nxd4 19. Nxd4 Qxd4 20. Qxd4 Bxd4 21. Nxd5 Rac8 22. Bd6 Kh8 23. Nc7 Red8 24. Nxe6 Rxd6 25. Nxd4 Rxd4 26. Re7 Kg7 27. R1e2 b5 {½-½ (27) Zvjaginsev,V (2636)-Bacrot,E (2722) Moscow 2009}) 10. Bc4 {[%emt 0:08:09]} O-O {[%emt 0:14:23] The position is equal.} 11. Bg5 {[%emt 0:04:29]} d6 {[%emt 0:06:46]} 12. exd6 {[%emt 0:09:50]} Qxd6 {[%emt 0:00:06]} 13. d5 {[%emt 0:01:13]} (13. Ne4 $5 {[%cal Re4d6]} Qb4 14. Rc1 $11) 13... Na5 {[%emt 0:00:41]} 14. Qa4 {[%emt 0:11:47]} (14. Be2 $11) 14... Nxc4 $17 {[%emt 0:22:31]} 15. Qxc4 {[%emt 0:00:53]} b5 {[%emt 0:00:08]} 16. Qe4 {[%emt 0:17:43]} Re8 {[%emt 0:06:09]} 17. Rad1 {[%emt 0:05:10]} Bf5 {[%emt 0:05:57]} 18. Qh4 {[%emt 0:00:35]} b4 {[%emt 0:03:29]} ({Black should try} 18... Bxc3 $17 19. Bf4 (19. bxc3 Nxd5 20. c4 bxc4 $17) 19... Qc5) 19. Ne4 $15 {[%emt 0:08:47]} Bxe4 {[%emt 0:00:08]} 20. Qxe4 {[%emt 0:00:03]} Bxb2 {[%emt 0:02:12]} 21. Rfe1 $2 {[%emt 0:03:55]} (21. Bf4 $15 Qc5 22. Ng5) 21... Bc3 $19 {[%emt 0:01:08]} 22. Re3 {[%emt 0:00:22]} (22. Bf4 $142 e5 23. dxe6 Qxe6 24. Qxe6 Nxe6 25. Bd2) 22... f6 {[%emt 0:04:54]} 23. Qh4 {[%emt 0:11:34]} Nxd5 {[%emt 0:04:32]} ({Wrong is} 23... fxg5 $2 24. Nxg5 h5 25. Ne4 $19) 24. Red3 {[%emt 0:00:19]} e6 {[%emt 0:00:03]} ({Less strong is} 24... fxg5 25. Nxg5 h5 26. Rxd5 $14) 25. Bxf6 {[%emt 0:00:07]} Bxf6 {[%emt 0:00:12]} 26. Qxf6 {[%emt 0:00:03][%cal Od3d5] [#] Rxd5! is the strong threat.} Qxh2+ $3 {[%emt 0:00:19][%mdl 512]} 27. Kxh2 {[%emt 0:00:14]} Nxf6 {[%emt 0:00:01]} 28. Rd6 {[%emt 0:00:35]} Ne4 {[%emt 0:03:09]} 29. Rb6 {[%emt 0:00:10]} Nxf2 {[%emt 0:00:22]} (29... a5 $1 $19 {Strongly threatening ...Rab8.} 30. Rd7 Rab8 31. Rxb8 Rxb8) 30. Rd7 {[%emt 0:00:06] [#]} (30. Rd2 $17 Ne4 31. Rd4) 30... Ng4+ $1 {[%emt 0:00:05][%cal Bf2g4,Bg4f6,Bf6h5][%mdl 32]} 31. Kh3 {[%emt 0:02:05]} Nf6 {[%emt 0:00:02]} 32. Rdd6 {[%emt 0:00:29]} a5 {[%emt 0:01:17]} 33. Ng5 $2 {[%emt 0:01:08]} (33. Rb7) 33... Rad8 {[%emt 0:01:15]} 34. Rxd8 {[%emt 0:00:40]} Rxd8 {[%emt 0:00:02]} 35. Rxe6 {[%emt 0:01:17][%mdl 4096] Endgame KRN-KRN} Rd3+ {[%emt 0:00:24]} 36. g3 {[%emt 0:01:00]} Nh5 {[%emt 0:00:08] White must now prevent ...Nf4+.} 37. Kh4 {[%emt 0:01:43]} Ng7 {[%emt 0:00:07] Prevents Re8+.} (37... Rxg3 $142 38. Re8+ Kg7 39. Re7+ Kf6 40. Rf7+ Ke5) 38. Ra6 {[%emt 0:00:18]} Nf5+ {[%emt 0:00:16]} 39. Kg4 {[%emt 0:00:02]} Rxg3+ {[%emt 0:02:05]} 40. Kf4 {[%emt 0:00:04]} Re3 {[%emt 0:02:33]} 41. Rxa5 {[%emt 0:33:37]} Re7 {[%emt 0:05:10]} 42. Rb5 {[%emt 0:00:00]} h6 {[%emt 0:00:58]} 43. Rb8+ {[%emt 0:00:00]} Kg7 {[%emt 0:00:02]} 44. Nf3 {[%emt 0:00:00]} (44. Ne4 $142) 44... Ne3 {[%emt 0:02:22]} 45. Kg3 {[%emt 0:00:00]} Re4 {[%emt 0:05:17]} 46. Rb7+ {[%emt 0:00:00]} Kf6 {[%emt 0:00:41]} 47. Rb6+ {[%emt 0:00:00] [#]} Kf7 $1 {[%emt 0:00:07]} 48. Rb7+ {[%emt 0:00:00]} Ke8 {[%emt 0:00:02]} 49. Nd2 {[%emt 0:00:00]} Rd4 {[%emt 0:00:55]} 50. Nb3 {[%emt 0:00:00]} Nf5+ {[%emt 0:00:37]} 51. Kf3 {[%emt 0:00:00]} Rc4 {[%emt 0:02:20]} 52. Nd2 {[%emt 0:00:00]} Rd4 {[%emt 0:03:08]} (52... Rc3+ $19 53. Kf4 Rc2) 53. Ne4 $2 {[%emt 0:00:00]} (53. Nb3 $1 $11 {and White is okay.} Rc4 54. Nd2) 53... g5 {[%emt 0:00:18][%cal Bg6g5,Bg5g4,Bg4g3,Bg3g2][%mdl 32] aiming for ...g4+!} 54. Nc5 $2 {[%emt 0:02:10]} (54. Rb5 Ne7 55. Ke3) 54... g4+ {[%emt 0:00:32]} 55. Ke2 {[%emt 0:00:10]} g3 {[%emt 0:01:25]} 56. Kf3 {[%emt 0:00:57]} Rc4 {[%emt 0:00:45] Threatens to win with ...Rc3+.} 57. Ne6 {[%emt 0:01:06]} Rc3+ {[%emt 0:00:29] Black mates.} 58. Kf4 {[%emt 0:02:48]} g2 {[%emt 0:00:18]} 59. Ng7+ {[%emt 0:00:27]} Kd8 {[%emt 0:01:35]} 60. Rb8+ {[%emt 0:00:05]} Kd7 {[%emt 0:01:40] Weighted Error Value: White=0.66/Black=0.27 (precise)} 0-1

[Event "44th Chess Olympiad Open 2022"]
[Site "Chennai"]
[Date "2022.08.09"]
[Round "11.4"]
[White "So, Wesley"]
[Black "Vidit, Santosh Gujrathi"]
[Result "1/2-1/2"]
[ECO "C54"]
[WhiteElo "2773"]
[BlackElo "2714"]
[Annotator "TA"]
[PlyCount "132"]
[EventDate "2022.07.29"]
[EventType "team-tourn"]
[EventCountry "IND"]
[SourceTitle "playchess.com"]
[Source "ChessBase"]
[SourceQuality "1"]
[WhiteTeam "United States"]
[BlackTeam "India"]
[WhiteTeamCountry "USA"]
[BlackTeamCountry "IND"]
[TimeControl "40/5400+30:1800+30"]

{[%evp 10,132,14,7,7,5,26,3,31,0,9,7,8,14,12,6,6,16,10,12,10,14,37,33,30,43,34,29,35,34,59,29,45,39,48,46,41,45,45,36,45,45,41,46,49,39,68,68,77,45,53,49,48,55,63,57,76,72,72,60,58,18,18,18,27,4,21,21,20,20,17,25,25,16,21,16,17,17,17,21,29,29,33,0,0,0,0,0,0,0,0,0,0,0,0,0,0,0,0,0,0,0,0,0,0,0,0,0,0,0,0,0,0,0,0,0,0,0,0,0,0,0,0,0,0]} 1. e4 {[%emt 0:01:18]} e5 {[%emt 0:00:18]} 2. Nf3 {[%emt 0:00:17]} Nc6 {[%emt 0:00:34]} 3. Bc4 {[%emt 0:00:07]} Nf6 {[%emt 0:00:29]} 4. d3 {[%emt 0:00:06]} Bc5 {[%emt 0:00:07]} 5. O-O {[%emt 0:00:16]} d6 {[%emt 0:00:26]} 6. c3 {[%emt 0:00:06]} a5 {[%emt 0:01:30] C54: Giuoco Piano: 4 c3 Nf6, main lines with 5 d4 and 5 d3.} 7. Re1 {[%emt 0:00:09]} Ba7 {[%emt 0:00:47]} 8. Na3 {[%emt 0:00:23]} O-O {[%emt 0:00:19]} 9. h3 {[%emt 0:00:10]} h6 {[%emt 0:00:54]} 10. Nb5 {[%emt 0:01:26]} Bb6 {[%emt 0:00:11]} 11. Be3 {[%emt 0:00:08]} Bxe3 {[%emt 0:00:20]} 12. Rxe3 {[%emt 0:00:04]} Re8 {[%emt 0:00:40]} 13. Qc2 {[%emt 0:13:58]} Ne7 {[%emt 0:03:13] [#] Hoping for ...c6.} 14. Qb3 {[%emt 0:08:15]} Rf8 {[%emt 0:07:44] Strongly threatening ...c6.} 15. d4 {[%emt 0:03:24] [#]} exd4 $146 {[%emt 0:13:20]} ({Predecessor:} 15... Ng6 16. Rd1 Bd7 17. a4 Qc8 18. Nd2 Nh5 19. Nf3 Nhf4 20. Bf1 Kh8 21. Qc4 Bc6 22. Nxc7 Qxc7 {½-½ (59) Ragger,M (2643)-Jones,G (2665) Chartres 2022}) 16. Nbxd4 {[%emt 0:07:41]} d5 {[%emt 0:07:30]} 17. exd5 {[%emt 0:00:00]} Nexd5 {[%emt 0:00:58]} 18. Re5 {[%emt 0:00:00][%cal Rc4d5]} c6 {[%emt 0:06:40]} 19. Rae1 {[%emt 0:09:07]} Qd6 {[%emt 0:08:21]} 20. Nb5 {[%emt 0:05:44]} Qd8 {[%emt 0:03:49]} 21. Rd1 {[%emt 0:07:24]} Bd7 {[%emt 0:10:06]} 22. Bxd5 {[%emt 0:05:28]} cxd5 {[%emt 0:04:57]} 23. Nbd4 {[%emt 0:09:20]} Qc7 {[%emt 0:00:44]} 24. Rde1 {[%emt 0:00:44]} Rfe8 {[%emt 0:00:36]} 25. Rxe8+ {[%emt 0:00:58]} Rxe8 {[%emt 0:00:13]} 26. Rxe8+ {[%emt 0:00:03]} Bxe8 {[%emt 0:00:13]} 27. Nf5 {[%emt 0:00:08] Pair of Knights!} b5 {[%emt 0:07:38][%cal Ob5b4]} 28. a3 {[%emt 0:03:34] White is more active.} Qc5 {[%emt 0:00:00]} 29. Qd1 {[%emt 0:07:48]} b4 {[%emt 0:04:21]} 30. axb4 {[%emt 0:00:00]} axb4 {[%emt 0:00:02]} 31. Qd4 {[%emt 0:00:00]} Qxd4 {[%emt 0:00:51]} 32. cxd4 $14 {[%emt 0:00:00][%mdl 4096] Endgame KBN-KNN} Kf8 {[%emt 0:03:40]} 33. Ne5 {[%emt 0:00:00]} Ne4 {[%emt 0:06:04]} 34. Ne3 {[%emt 0:03:53]} Nd6 {[%emt 0:02:00]} 35. b3 {[%emt 0:10:57]} Nb7 {[%emt 0:00:06]} 36. Nd3 {[%emt 0:00:57]} Na5 {[%emt 0:00:08]} 37. Nc5 {[%emt 0:00:58]} Nc6 {[%emt 0:00:37]} 38. Nc2 {[%emt 0:03:09]} Ke7 {[%emt 0:07:36]} 39. Nd3 {[%emt 0:01:14]} Na5 {[%emt 0:00:10]} 40. Ndxb4 {[%emt 0:00:14]} Nxb3 {[%emt 0:00:31]} 41. Nxd5+ {[%emt 0:30:02]} Kd6 {[%emt 0:30:23]} 42. Nde3 {[%emt 0:00:07]} g6 {[%emt 0:01:53] Prevents Nf5+.} 43. f3 {[%emt 0:00:00]} f5 {[%emt 0:00:00]} 44. g3 {[%emt 0:00:00]} Ke6 {[%emt 0:00:00]} 45. Kf2 {[%emt 0:00:00]} g5 {[%emt 0:00:00]} 46. f4 {[%emt 0:00:00]} Bc6 {[%emt 0:00:00] Prevents d5+. The position is equal.} 47. Nc4 {[%emt 0:00:00]} Be4 {[%emt 0:00:00]} 48. N4a3 {[%emt 0:00:00]} gxf4 {[%emt 0:00:00]} 49. gxf4 {[%emt 0:00:00]} Kd5 {[%emt 0:00:00]} 50. Ke3 {[%emt 0:00:00]} Bxc2 {[%emt 0:00:00]} 51. Nxc2 $11 {[%emt 0:00:00] KN-KN} Kc4 {[%emt 0:00:00]} 52. Na3+ {[%emt 0:00:00]} Kb4 {[%emt 0:00:00]} 53. Nc2+ {[%emt 0:00:00]} (53. Nb1 $5 {[%cal Rb1d2]}) 53... Kc4 {[%emt 0:00:00]} 54. h4 {[%emt 0:00:00]} h5 {[%emt 0:00:00]} 55. Na3+ {[%emt 0:00:00]} Kb4 $1 {[%emt 0:00:00]} 56. Nb1 {[%emt 0:00:00] [#] And now Nd2 would win.} Kc4 {[%emt 0:00:00]} 57. d5 {[%emt 0:02:01]} Kxd5 {[%emt 0:00:00]} 58. Nc3+ {[%emt 0:00:03]} Ke6 {[%emt 0:00:00]} 59. Ne2 {[%emt 0:00:18]} Kf6 {[%emt 0:00:00]} 60. Ng3 {[%emt 0:00:33]} Kg6 {[%emt 0:00:00]} 61. Kd3 {[%emt 0:00:04]} Nc5+ {[%emt 0:00:00]} 62. Kd4 {[%emt 0:00:02]} Ne6+ {[%emt 0:00:01]} 63. Ke5 {[%emt 0:00:04]} Nc5 {[%emt 0:00:06]} 64. Ne2 {[%emt 0:00:52]} Nd3+ {[%emt 0:01:56]} 65. Kd4 {[%emt 0:01:29]} Ne1 {[%emt 0:00:47]} 66. Ke3 {[%emt 0:00:25]} Kf6 {[%emt 0:00:05] Weighted Error Value: White=0.05 (flawless) /Black=0.03 (flawless)} 1/2-1/2

[Event "44th Chess Olympiad Open 2022"]
[Site "Chennai"]
[Date "2022.08.09"]
[Round "11.4"]
[White "Harikrishna, Pentala"]
[Black "Caruana, Fabiano"]
[Result "1/2-1/2"]
[ECO "E36"]
[WhiteElo "2720"]
[BlackElo "2783"]
[Annotator "TA"]
[PlyCount "36"]
[EventDate "2022.07.29"]
[EventType "team-tourn"]
[EventCountry "IND"]
[SourceTitle "playchess.com"]
[Source "ChessBase"]
[SourceQuality "1"]
[WhiteTeam "India"]
[BlackTeam "United States"]
[WhiteTeamCountry "IND"]
[BlackTeamCountry "USA"]
[TimeControl "40/5400+30:1800+30"]

{[%evp 12,36,22,21,21,9,15,14,13,13,15,0,0,0,7,0,0,0,0,0,0,0,0,0,0,0,0]} 1. d4 {[%emt 0:00:04]} Nf6 {[%emt 0:00:06]} 2. c4 {[%emt 0:00:04]} e6 {[%emt 0:00:04]} 3. Nc3 {[%emt 0:00:04]} Bb4 {[%emt 0:00:07]} 4. Qc2 {[%emt 0:00:15]} O-O {[%emt 0:00:08]} 5. a3 {[%emt 0:00:04]} Bxc3+ {[%emt 0:00:06]} 6. Qxc3 {[%emt 0:00:04]} d5 {[%emt 0:00:05]} 7. Bg5 {[%emt 0:00:04] The position is equal.} h6 {[%emt 0:01:38] E36: Nimzo-Indian: Classical: 4...d5 5 a3.} 8. Bxf6 {[%emt 0:01:45]} Qxf6 {[%emt 0:00:47]} 9. Nf3 {[%emt 0:00:11]} dxc4 $1 {[%emt 0:04:51] 9...dxc4 is better than 9...c6.} 10. Qxc4 {[%emt 0:05:21]} Nc6 {[%emt 0:02:49]} 11. e3 {[%emt 0:07:48]} e5 {[%emt 0:00:00]} 12. d5 {[%emt 0:00:25]} e4 {[%emt 0:15:03] [#]} 13. Qxe4 $146 {[%emt 0:04:16] [#] Bd3 is the strong threat.} ({Predecessor:} 13. Nd2 Ne7 14. Nxe4 Qxb2 15. Qc3 Qb6 16. Bc4 Rd8 17. Rd1 Qg6 18. Ng3 c6 19. Bd3 {1-0 (94) Reuker,J (2389)-Grigorian,S (2359) Bremen 2018}) 13... Qxb2 {[%emt 0:00:31]} 14. Rd1 {[%emt 0:00:22]} Qc3+ {[%emt 0:00:00]} 15. Rd2 {[%emt 0:14:08]} Qc1+ {[%emt 0:00:00]} 16. Rd1 $1 {[%emt 0:00:58]} Qc3+ {[%emt 0:08:31]} 17. Rd2 {[%emt 0:12:49]} Qc1+ {[%emt 0:00:00]} 18. Rd1 $1 {[%emt 0:00:03]} Qc3+ {[%emt 0:00:00] A balanced but interesting game.  Weighted Error Value: White=0.02 (flawless) /Black=0.00 (flawless)} 1/2-1/2